[Event "*** Titled Tuesday Blitz"]
[Site "Chess.com"]
[Date "2020.10.27"]
[Round "3"]
[White "TioCridineno"]
[Black "BursaBBSatranc"]
[Result "0-1"]
[WhiteElo "2227"]
[BlackElo "2512"]
[TimeControl "180+1"]
[EndTime "10:26:38 PDT"]
[Termination "BursaBBSatranc won by resignation"]

1. e4 {[%clk 0:03:00.9]} 1... e5 {[%clk 0:02:59.9]} 2. Nc3 {[%clk 0:03:00.7]}
2... Nf6 {[%clk 0:02:58.5]} 3. f4 {[%clk 0:03:00.6]} 3... d5 {[%clk 0:02:56.6]}
4. fxe5 {[%clk 0:03:00.9]} 4... Nxe4 {[%clk 0:02:56.1]} 5. d3 {[%clk 0:03:01.6]}
5... Qh4+ {[%clk 0:01:52]} 6. g3 {[%clk 0:03:00.1]} 6... Nxg3 {[%clk 0:01:50.9]}
7. Nf3 {[%clk 0:03:00.7]} 7... Qh5 {[%clk 0:01:51]} 8. Nxd5 {[%clk 0:03:01.3]}
8... Nxh1 {[%clk 0:01:37.1]} 9. Nxc7+ {[%clk 0:02:59.2]} 9... Kd8 {[%clk
0:01:37.3]} 10. Nxa8 {[%clk 0:03:00.1]} 10... Bg4 {[%clk 0:01:35.3]} 11. Bg2
{[%clk 0:03:00]} 11... Nc6 {[%clk 0:00:56.8]} 12. d4 {[%clk 0:02:58.5]} 12...
Be7 {[%clk 0:00:41.3]} 13. Be3 {[%clk 0:02:30.4]} 13... Kc8 {[%clk 0:00:22.9]}
14. Qe2 {[%clk 0:02:21.4]} 14... Kb8 {[%clk 0:00:20.1]} 15. Bxh1 {[%clk
0:02:20.9]} 15... Kxa8 {[%clk 0:00:20.2]} 16. c3 {[%clk 0:02:20.5]} 16... Bh4+
{[%clk 0:00:17.2]} 17. Kd2 {[%clk 0:02:19.5]} 17... Rd8 {[%clk 0:00:14.4]} 18.
Kc1 {[%clk 0:02:02]} 18... f6 {[%clk 0:00:12.4]} 19. exf6 {[%clk 0:02:00.1]}
19... Bxf6 {[%clk 0:00:12]} 20. Qf2 {[%clk 0:01:57.1]} 20... Re8 {[%clk
0:00:10.9]} 21. Bd2 {[%clk 0:01:51.9]} 21... Qg6 {[%clk 0:00:06.9]} 22. Ne1
{[%clk 0:01:35.9]} 22... Re2 {[%clk 0:00:05.9]} 23. Qg3 {[%clk 0:01:29.4]} 23...
Rxd2 {[%clk 0:00:04.7]} 24. Kxd2 {[%clk 0:01:29.2]} 24... Bg5+ {[%clk
0:00:04.9]} 0-1

[Event "*** Titled Tuesday Blitz"]
[Site "Chess.com"]
[Date "2020.10.27"]
[Round "3"]
[White "FMOlexandrProhorov"]
[Black "kreonx"]
[Result "1-0"]
[WhiteElo "2120"]
[BlackElo "2339"]
[TimeControl "180+1"]
[EndTime "10:26:48 PDT"]
[Termination "FMOlexandrProhorov won on time"]

1. e4 {[%clk 0:03:00.9]} 1... c5 {[%clk 0:02:08.5]} 2. c3 {[%clk 0:02:58.6]}
2... Nc6 {[%clk 0:02:07.3]} 3. d4 {[%clk 0:02:57.3]} 3... cxd4 {[%clk
0:02:06.5]} 4. cxd4 {[%clk 0:02:58.2]} 4... d5 {[%clk 0:02:05.2]} 5. Nc3 {[%clk
0:02:56.5]} 5... Nf6 {[%clk 0:02:02.5]} 6. exd5 {[%clk 0:02:55]} 6... Nxd5
{[%clk 0:02:01.4]} 7. Nf3 {[%clk 0:02:55.5]} 7... Bg4 {[%clk 0:01:58.3]} 8. Bc4
{[%clk 0:02:50.8]} 8... Nb6 {[%clk 0:01:55.8]} 9. Bxf7+ {[%clk 0:02:49.7]} 9...
Kxf7 {[%clk 0:01:53.9]} 10. Ng5+ {[%clk 0:02:50]} 10... Ke8 {[%clk 0:01:47.7]}
11. Qxg4 {[%clk 0:02:50.9]} 11... Qxd4 {[%clk 0:01:45.1]} 12. Bf4 {[%clk
0:02:47.3]} 12... Rd8 {[%clk 0:01:35.6]} 13. O-O {[%clk 0:02:46.9]} 13... Ne5
{[%clk 0:01:26.8]} 14. Qf5 {[%clk 0:02:41.2]} 14... Nbc4 {[%clk 0:01:13.8]} 15.
Rad1 {[%clk 0:02:32.1]} 15... g6 {[%clk 0:00:47.9]} 16. Rxd4 {[%clk 0:01:47.3]}
16... gxf5 {[%clk 0:00:46.2]} 17. Rxd8+ {[%clk 0:01:35.3]} 17... Kxd8 {[%clk
0:00:45.3]} 18. Bxe5 {[%clk 0:01:35.9]} 18... Nxe5 {[%clk 0:00:41.5]} 19. f4
{[%clk 0:01:36.8]} 19... Bh6 {[%clk 0:00:33.2]} 20. Ne6+ {[%clk 0:01:29.7]}
20... Kd7 {[%clk 0:00:32.1]} 21. Nd4 {[%clk 0:01:23.2]} 21... Ng6 {[%clk
0:00:27.3]} 22. Nxf5 {[%clk 0:01:20.1]} 22... Bxf4 {[%clk 0:00:25.3]} 23. Rd1+
{[%clk 0:01:20]} 23... Kc6 {[%clk 0:00:18.9]} 24. b4 {[%clk 0:01:17.7]} 24...
Rf8 {[%clk 0:00:16.9]} 25. g4 {[%clk 0:01:18]} 25... Ne5 {[%clk 0:00:07.9]} 26.
h3 {[%clk 0:01:16.7]} 26... e6 {[%clk 0:00:04.8]} 27. Nd4+ {[%clk 0:01:15.2]}
1-0

[Event "*** Titled Tuesday Blitz"]
[Site "Chess.com"]
[Date "2020.10.27"]
[Round "3"]
[White "Rakesh"]
[Black "SantoBlue"]
[Result "0-1"]
[WhiteElo "2456"]
[BlackElo "2832"]
[TimeControl "180+1"]
[EndTime "10:26:49 PDT"]
[Termination "SantoBlue won by resignation"]

1. e4 {[%clk 0:03:00.9]} 1... c5 {[%clk 0:02:59.8]} 2. c3 {[%clk 0:03:00.8]}
2... Nf6 {[%clk 0:02:59]} 3. e5 {[%clk 0:03:01]} 3... Nd5 {[%clk 0:02:58.9]} 4.
d4 {[%clk 0:03:01.9]} 4... cxd4 {[%clk 0:02:56.6]} 5. Nf3 {[%clk 0:03:02.8]}
5... e6 {[%clk 0:02:54.7]} 6. cxd4 {[%clk 0:03:02.3]} 6... Nc6 {[%clk
0:02:54.3]} 7. Bc4 {[%clk 0:02:56.9]} 7... Nb6 {[%clk 0:02:50.4]} 8. Bd3 {[%clk
0:02:54.2]} 8... d6 {[%clk 0:02:44.2]} 9. O-O {[%clk 0:02:52.2]} 9... dxe5
{[%clk 0:02:38.7]} 10. dxe5 {[%clk 0:02:53.1]} 10... Be7 {[%clk 0:02:38.6]} 11.
Qe2 {[%clk 0:02:51.9]} 11... Nd5 {[%clk 0:02:33.6]} 12. Nc3 {[%clk 0:02:47.8]}
12... Nxc3 {[%clk 0:02:33.3]} 13. bxc3 {[%clk 0:02:48.7]} 13... Qa5 {[%clk
0:02:33.7]} 14. Bd2 {[%clk 0:02:46.2]} 14... Bd7 {[%clk 0:02:27.7]} 15. Qe4
{[%clk 0:02:40.4]} 15... Qc7 {[%clk 0:02:21.8]} 16. Rfe1 {[%clk 0:02:39.3]}
16... Bc5 {[%clk 0:02:16.3]} 17. Nd4 {[%clk 0:02:20.8]} 17... Nxd4 {[%clk
0:02:05.3]} 18. cxd4 {[%clk 0:02:21.7]} 18... Bc6 {[%clk 0:02:04.6]} 19. Qg4
{[%clk 0:02:11]} 19... h5 {[%clk 0:01:57.6]} 20. Qf4 {[%clk 0:01:41.1]} 20...
O-O-O {[%clk 0:01:56.8]} 21. dxc5 {[%clk 0:01:35.6]} 21... Rxd3 {[%clk 0:01:56]}
22. Be3 {[%clk 0:01:35.9]} 22... Rhd8 {[%clk 0:01:49.3]} 23. h4 {[%clk
0:01:33.6]} 23... Qd7 {[%clk 0:01:48.8]} 24. Rab1 {[%clk 0:01:28.9]} 24... Qd5
{[%clk 0:01:47.5]} 25. Qg5 {[%clk 0:01:19.3]} 25... g6 {[%clk 0:01:40.9]} 26. a4
{[%clk 0:01:18.5]} 26... a5 {[%clk 0:01:35.7]} 27. Rbc1 {[%clk 0:01:01.1]} 27...
Rd7 {[%clk 0:01:17.7]} 28. Qg3 {[%clk 0:00:56.4]} 28... Qe4 {[%clk 0:01:09.5]}
29. f3 {[%clk 0:00:51.2]} 29... Rxe3 {[%clk 0:01:06.3]} 30. Qf2 {[%clk
0:00:39.9]} 30... Rxe1+ {[%clk 0:01:04.1]} 31. Rxe1 {[%clk 0:00:40.8]} 31...
Qxa4 {[%clk 0:01:03.3]} 32. Qe3 {[%clk 0:00:38.5]} 32... Qd4 {[%clk 0:01:02.8]}
33. Kf2 {[%clk 0:00:38.4]} 33... Qxh4+ {[%clk 0:01:01.9]} 34. Kg1 {[%clk
0:00:36.9]} 34... Qd4 {[%clk 0:01:02.4]} 0-1

[Event "*** Titled Tuesday Blitz"]
[Site "Chess.com"]
[Date "2020.10.27"]
[Round "3"]
[White "Marina_Chess_Rus"]
[Black "GalperinPlaton"]
[Result "0-1"]
[WhiteElo "2279"]
[BlackElo "2827"]
[TimeControl "180+1"]
[EndTime "10:26:54 PDT"]
[Termination "GalperinPlaton won by resignation"]

1. d4 {[%clk 0:03:00.9]} 1... Nf6 {[%clk 0:02:55.2]} 2. Nf3 {[%clk 0:02:58.1]}
2... b5 {[%clk 0:02:54.1]} 3. Bg5 {[%clk 0:02:54]} 3... Bb7 {[%clk 0:02:53.4]}
4. e3 {[%clk 0:02:53.2]} 4... a6 {[%clk 0:02:53]} 5. Bd3 {[%clk 0:02:52.6]} 5...
e6 {[%clk 0:02:53]} 6. Nbd2 {[%clk 0:02:52.2]} 6... Be7 {[%clk 0:02:53.4]} 7.
O-O {[%clk 0:02:52]} 7... O-O {[%clk 0:02:54]} 8. c4 {[%clk 0:02:50.8]} 8... b4
{[%clk 0:02:52.2]} 9. Qc2 {[%clk 0:02:46.5]} 9... h6 {[%clk 0:02:50.6]} 10. Bh4
{[%clk 0:02:46.1]} 10... c5 {[%clk 0:02:50.3]} 11. Rad1 {[%clk 0:02:42.9]} 11...
Qc7 {[%clk 0:02:45.3]} 12. e4 {[%clk 0:02:31.1]} 12... cxd4 {[%clk 0:02:44.6]}
13. Nxd4 {[%clk 0:02:22.7]} 13... Nc6 {[%clk 0:02:38.7]} 14. N4f3 {[%clk
0:02:18.4]} 14... a5 {[%clk 0:02:36]} 15. Rfe1 {[%clk 0:02:09.9]} 15... d6
{[%clk 0:02:36]} 16. Bg3 {[%clk 0:02:07.5]} 16... Qb6 {[%clk 0:02:35.4]} 17. b3
{[%clk 0:02:00.6]} 17... a4 {[%clk 0:02:34.6]} 18. e5 {[%clk 0:01:53.7]} 18...
dxe5 {[%clk 0:02:34.5]} 19. Nxe5 {[%clk 0:01:53.4]} 19... Nd4 {[%clk 0:02:34.9]}
20. Qb1 {[%clk 0:01:49.2]} 20... Rfd8 {[%clk 0:02:35.3]} 21. Ne4 {[%clk
0:01:38.7]} 21... Nxe4 {[%clk 0:02:31.4]} 22. Bxe4 {[%clk 0:01:38.5]} 22... Bc5
{[%clk 0:02:29.6]} 23. Bxb7 {[%clk 0:01:35.3]} 23... Qxb7 {[%clk 0:02:30.5]} 24.
Rd3 {[%clk 0:01:30.6]} 24... axb3 {[%clk 0:02:21.1]} 25. axb3 {[%clk 0:01:30.1]}
25... f6 {[%clk 0:02:21.4]} 26. Ng6 {[%clk 0:01:23.7]} 26... Ne2+ {[%clk
0:02:19.4]} 27. Kh1 {[%clk 0:01:16.6]} 27... Nc3 {[%clk 0:02:19.5]} 28. Rxd8+
{[%clk 0:01:13.5]} 28... Rxd8 {[%clk 0:02:20.4]} 29. Qc2 {[%clk 0:01:11.9]}
29... e5 {[%clk 0:02:20.6]} 30. f3 {[%clk 0:01:06.7]} 30... Qd7 {[%clk
0:02:16.9]} 31. h3 {[%clk 0:01:03.1]} 31... Qd3 {[%clk 0:02:06.3]} 32. Qxd3
{[%clk 0:00:51.1]} 32... Rxd3 {[%clk 0:02:07.2]} 33. Ra1 {[%clk 0:00:49]} 33...
Kf7 {[%clk 0:02:05]} 34. Nh4 {[%clk 0:00:46.5]} 34... Ne2 {[%clk 0:02:00.7]} 35.
Be1 {[%clk 0:00:44.5]} 35... Rxb3 {[%clk 0:01:59.8]} 36. Nf5 {[%clk 0:00:35.7]}
36... Nd4 {[%clk 0:01:48.4]} 37. Nxd4 {[%clk 0:00:30.4]} 37... Bxd4 {[%clk
0:01:49.3]} 38. Rc1 {[%clk 0:00:27.9]} 38... Bc5 {[%clk 0:01:42.3]} 39. Kh2
{[%clk 0:00:22.9]} 39... Rd3 {[%clk 0:01:42.1]} 40. Ra1 {[%clk 0:00:22]} 40...
b3 {[%clk 0:01:42.3]} 41. Ra5 {[%clk 0:00:20.5]} 41... b2 {[%clk 0:01:40.1]} 42.
Rb5 {[%clk 0:00:20.5]} 42... Bd4 {[%clk 0:01:37.7]} 43. Ba5 {[%clk 0:00:19.7]}
43... Rd1 {[%clk 0:01:37]} 44. Bb6 {[%clk 0:00:17.9]} 44... b1=Q {[%clk
0:01:36.5]} 0-1

[Event "*** Titled Tuesday Blitz"]
[Site "Chess.com"]
[Date "2020.10.27"]
[Round "3"]
[White "Benjoneliere44"]
[Black "GOGIEFF"]
[Result "0-1"]
[WhiteElo "2668"]
[BlackElo "2884"]
[TimeControl "180+1"]
[EndTime "10:26:58 PDT"]
[Termination "GOGIEFF won by resignation"]

1. d4 {[%clk 0:03:00.9]} 1... Nf6 {[%clk 0:02:59.3]} 2. Bf4 {[%clk 0:03:01]}
2... c5 {[%clk 0:02:58.2]} 3. c3 {[%clk 0:02:59.6]} 3... Qb6 {[%clk 0:02:56.8]}
4. Qb3 {[%clk 0:02:58.1]} 4... cxd4 {[%clk 0:02:56.7]} 5. Qxb6 {[%clk
0:02:53.7]} 5... axb6 {[%clk 0:02:57.6]} 6. cxd4 {[%clk 0:02:54.3]} 6... Nc6
{[%clk 0:02:58.2]} 7. Nf3 {[%clk 0:02:45.2]} 7... Nd5 {[%clk 0:02:58.1]} 8. Bd2
{[%clk 0:02:40.8]} 8... Ndb4 {[%clk 0:02:55.5]} 9. Kd1 {[%clk 0:02:30.7]} 9...
d5 {[%clk 0:02:54]} 10. a3 {[%clk 0:02:29.4]} 10... Bf5 {[%clk 0:02:52.8]} 11.
Nc3 {[%clk 0:02:25.2]} 11... Bc2+ {[%clk 0:02:48.8]} 12. Kc1 {[%clk 0:02:19.2]}
12... Bb3 {[%clk 0:02:38]} 13. e3 {[%clk 0:02:10]} 13... e6 {[%clk 0:02:37.7]}
14. Bb5 {[%clk 0:02:02.4]} 14... Bd6 {[%clk 0:02:28.5]} 15. Rb1 {[%clk
0:02:00.9]} 15... Na2+ {[%clk 0:02:15]} 16. Nxa2 {[%clk 0:01:59]} 16... Bxa2
{[%clk 0:02:15.9]} 17. Ra1 {[%clk 0:01:59.4]} 17... Bc4 {[%clk 0:02:16.1]} 18.
Bxc4 {[%clk 0:01:55.5]} 18... dxc4 {[%clk 0:02:17]} 19. Kc2 {[%clk 0:01:51.2]}
19... b5 {[%clk 0:02:14.5]} 20. Bc3 {[%clk 0:01:39.4]} 20... O-O {[%clk
0:02:09.7]} 21. Rhd1 {[%clk 0:01:38.9]} 21... Ne7 {[%clk 0:02:04.7]} 22. e4
{[%clk 0:01:25.5]} 22... Rfd8 {[%clk 0:02:04.9]} 23. g3 {[%clk 0:01:19.5]} 23...
h6 {[%clk 0:02:05]} 24. Bb4 {[%clk 0:01:13.2]} 24... Nc6 {[%clk 0:01:46.3]} 25.
Bxd6 {[%clk 0:01:11.6]} 25... Rxd6 {[%clk 0:01:47.2]} 26. Kc3 {[%clk 0:01:10.5]}
26... Na5 {[%clk 0:01:44.2]} 27. a4 {[%clk 0:00:53.6]} 27... Nb3 {[%clk
0:01:42.8]} 28. Ra3 {[%clk 0:00:53.4]} 28... bxa4 {[%clk 0:01:36.4]} 29. d5
{[%clk 0:00:51]} 29... b5 {[%clk 0:01:34.2]} 30. Nd4 {[%clk 0:00:47]} 30... Rb8
{[%clk 0:01:22.9]} 31. Kb4 {[%clk 0:00:33.3]} 31... exd5 {[%clk 0:01:22.6]} 32.
Nxb5 {[%clk 0:00:31.3]} 32... d4 {[%clk 0:01:14.8]} 33. Rxa4 {[%clk 0:00:21.5]}
33... Rdb6 {[%clk 0:01:13.5]} 34. Kxc4 {[%clk 0:00:19.8]} 34... Rxb5 {[%clk
0:01:13.1]} 0-1

[Event "*** Titled Tuesday Blitz"]
[Site "Chess.com"]
[Date "2020.10.27"]
[Round "3"]
[White "Andrakhanova"]
[Black "Borsuk_Konstantin"]
[Result "0-1"]
[WhiteElo "2242"]
[BlackElo "2566"]
[TimeControl "180+1"]
[EndTime "10:27:10 PDT"]
[Termination "Borsuk_Konstantin won by resignation"]

1. c4 {[%clk 0:03:00.9]} 1... e6 {[%clk 0:02:58.4]} 2. g3 {[%clk 0:02:59.9]}
2... h5 {[%clk 0:02:54.5]} 3. h4 {[%clk 0:02:58.7]} 3... Be7 {[%clk 0:02:53.8]}
4. d4 {[%clk 0:02:55]} 4... d5 {[%clk 0:02:50.8]} 5. cxd5 {[%clk 0:02:51.9]}
5... exd5 {[%clk 0:02:50.6]} 6. Bg2 {[%clk 0:02:51.7]} 6... c6 {[%clk
0:02:49.5]} 7. Nf3 {[%clk 0:02:51.3]} 7... Bg4 {[%clk 0:02:49.1]} 8. Nc3 {[%clk
0:02:50.6]} 8... Nd7 {[%clk 0:02:48.7]} 9. Bf4 {[%clk 0:02:50.1]} 9... Qb6
{[%clk 0:02:44.8]} 10. Qd2 {[%clk 0:02:49.4]} 10... Ngf6 {[%clk 0:02:42.3]} 11.
Ne5 {[%clk 0:02:46.1]} 11... Nxe5 {[%clk 0:02:41.7]} 12. dxe5 {[%clk 0:02:46.1]}
12... Nd7 {[%clk 0:02:41.4]} 13. O-O {[%clk 0:02:32.9]} 13... Be6 {[%clk
0:02:32.3]} 14. e4 {[%clk 0:02:25.5]} 14... d4 {[%clk 0:02:30]} 15. Na4 {[%clk
0:02:24.9]} 15... Qb4 {[%clk 0:02:26.8]} 16. Qxb4 {[%clk 0:02:22]} 16... Bxb4
{[%clk 0:02:26.2]} 17. a3 {[%clk 0:02:21.5]} 17... Be7 {[%clk 0:02:18.6]} 18. b4
{[%clk 0:02:18.6]} 18... a5 {[%clk 0:02:15.5]} 19. Rfb1 {[%clk 0:02:06.2]} 19...
axb4 {[%clk 0:02:08.8]} 20. axb4 {[%clk 0:02:07.1]} 20... O-O {[%clk 0:02:05.7]}
21. b5 {[%clk 0:01:42.8]} 21... c5 {[%clk 0:02:03.7]} 22. b6 {[%clk 0:01:39.3]}
22... Ra6 {[%clk 0:01:56]} 23. Bf1 {[%clk 0:01:32.2]} 23... c4 {[%clk
0:01:55.9]} 24. Rc1 {[%clk 0:01:26.6]} 24... d3 {[%clk 0:01:53.9]} 25. Be3
{[%clk 0:01:20.6]} 25... Rfa8 {[%clk 0:01:52.9]} 26. f4 {[%clk 0:01:12.8]} 26...
Rxa4 {[%clk 0:01:42]} 27. Rxa4 {[%clk 0:01:13.7]} 27... Rxa4 {[%clk 0:01:41.7]}
28. f5 {[%clk 0:01:14.2]} 28... Nxe5 {[%clk 0:01:34.8]} 29. fxe6 {[%clk
0:01:13.2]} 29... fxe6 {[%clk 0:01:35.7]} 30. Bh3 {[%clk 0:01:06.8]} 30... Ng4
{[%clk 0:01:26.2]} 31. Bxg4 {[%clk 0:01:00.6]} 31... hxg4 {[%clk 0:01:25.6]} 32.
Bd4 {[%clk 0:00:58.3]} 32... Bd6 {[%clk 0:01:08.7]} 33. e5 {[%clk 0:00:57.6]}
33... Bf8 {[%clk 0:01:00.4]} 34. Kf2 {[%clk 0:00:57.2]} 34... g6 {[%clk
0:01:00.7]} 35. Be3 {[%clk 0:00:41.3]} 35... Ra2+ {[%clk 0:00:59.6]} 36. Kf1
{[%clk 0:00:41.5]} 36... Rc2 {[%clk 0:00:55]} 37. Rxc2 {[%clk 0:00:39.8]} 37...
dxc2 {[%clk 0:00:54.8]} 38. Ke2 {[%clk 0:00:40.7]} 38... Ba3 {[%clk 0:00:54.6]}
0-1

[Event "*** Titled Tuesday Blitz"]
[Site "Chess.com"]
[Date "2020.10.27"]
[Round "3"]
[White "ShahMatKanal"]
[Black "Firouzja2003"]
[Result "0-1"]
[WhiteElo "2473"]
[BlackElo "3063"]
[TimeControl "180+1"]
[EndTime "10:27:12 PDT"]
[Termination "Firouzja2003 won by resignation"]

1. d4 {[%clk 0:03:00.9]} 1... a6 {[%clk 0:02:59.6]} 2. Nf3 {[%clk 0:02:58.1]}
2... b5 {[%clk 0:02:59.5]} 3. g3 {[%clk 0:02:56.5]} 3... Bb7 {[%clk 0:02:59.7]}
4. Bg2 {[%clk 0:02:56.8]} 4... e6 {[%clk 0:03:00.1]} 5. O-O {[%clk 0:02:55]}
5... c5 {[%clk 0:03:00.4]} 6. c3 {[%clk 0:02:52.4]} 6... cxd4 {[%clk 0:03:00.6]}
7. cxd4 {[%clk 0:02:52.5]} 7... Nf6 {[%clk 0:03:01.3]} 8. Nc3 {[%clk 0:02:48.9]}
8... Be7 {[%clk 0:03:01.3]} 9. a3 {[%clk 0:02:48.6]} 9... O-O {[%clk 0:03:01.4]}
10. Qd3 {[%clk 0:02:44]} 10... d5 {[%clk 0:03:00.3]} 11. Ne5 {[%clk 0:02:38.2]}
11... Nbd7 {[%clk 0:03:00.4]} 12. Bf4 {[%clk 0:02:30.6]} 12... Nb6 {[%clk
0:02:59.6]} 13. Rac1 {[%clk 0:02:17.9]} 13... Rc8 {[%clk 0:02:58.8]} 14. Rc2
{[%clk 0:02:15.7]} 14... Nc4 {[%clk 0:02:57.9]} 15. e3 {[%clk 0:02:08.4]} 15...
Ne8 {[%clk 0:02:53.7]} 16. h4 {[%clk 0:02:00.4]} 16... Ned6 {[%clk 0:02:53.6]}
17. Nxc4 {[%clk 0:01:51.9]} 17... bxc4 {[%clk 0:02:45.9]} 18. Qe2 {[%clk
0:01:49.6]} 18... Nb5 {[%clk 0:02:46.8]} 19. h5 {[%clk 0:01:33.1]} 19... Nxc3
{[%clk 0:02:33.3]} 20. Rxc3 {[%clk 0:01:32.3]} 20... Qb6 {[%clk 0:02:33.9]} 21.
g4 {[%clk 0:01:26]} 21... a5 {[%clk 0:02:31]} 22. h6 {[%clk 0:01:18.7]} 22... g6
{[%clk 0:02:30.7]} 23. Rd1 {[%clk 0:01:07.5]} 23... Rfd8 {[%clk 0:02:30.6]} 24.
Rd2 {[%clk 0:01:00.4]} 24... a4 {[%clk 0:02:30.4]} 25. Qf3 {[%clk 0:00:59.7]}
25... Bc6 {[%clk 0:02:29.9]} 26. Qg3 {[%clk 0:00:56.2]} 26... Rd7 {[%clk
0:02:30.2]} 27. g5 {[%clk 0:00:53.2]} 27... Rb7 {[%clk 0:02:30.2]} 28. Be5
{[%clk 0:00:52.4]} 28... Qd8 {[%clk 0:02:30.1]} 29. f4 {[%clk 0:00:50.7]} 29...
Rb3 {[%clk 0:02:30.2]} 30. Rxb3 {[%clk 0:00:33]} 30... axb3 {[%clk 0:02:31.1]}
31. Rd1 {[%clk 0:00:32.4]} 31... Ba4 {[%clk 0:02:27.6]} 32. e4 {[%clk
0:00:20.6]} 32... c3 {[%clk 0:02:25.5]} 33. bxc3 {[%clk 0:00:18.8]} 33... b2
{[%clk 0:02:26.1]} 34. Rb1 {[%clk 0:00:19]} 34... Bxa3 {[%clk 0:02:26.6]} 35. c4
{[%clk 0:00:13.5]} 35... Bc2 {[%clk 0:01:51.2]} 36. Qxa3 {[%clk 0:00:12.8]}
36... Bxb1 {[%clk 0:01:51.7]} 37. Qxb2 {[%clk 0:00:12.9]} 37... Bxe4 {[%clk
0:01:52]} 38. Bxe4 {[%clk 0:00:12.5]} 38... dxe4 {[%clk 0:01:52.9]} 39. Qe2
{[%clk 0:00:08.6]} 39... Qa5 {[%clk 0:01:51.7]} 40. d5 {[%clk 0:00:04.7]} 40...
exd5 {[%clk 0:01:51.1]} 41. cxd5 {[%clk 0:00:04.9]} 41... Qxd5 {[%clk
0:01:51.2]} 42. Kf2 {[%clk 0:00:04]} 42... Qd3 {[%clk 0:01:49.8]} 43. Qxd3
{[%clk 0:00:03.5]} 43... exd3 {[%clk 0:01:50.7]} 44. Ke3 {[%clk 0:00:04.4]}
44... Rd8 {[%clk 0:01:51.3]} 45. Bf6 {[%clk 0:00:03]} 45... Rd7 {[%clk
0:01:51.4]} 46. Bc3 {[%clk 0:00:02.2]} 46... Kf8 {[%clk 0:01:51.6]} 47. Bb4+
{[%clk 0:00:02]} 47... Ke8 {[%clk 0:01:52]} 48. Kd2 {[%clk 0:00:02.8]} 48... Rd5
{[%clk 0:01:52]} 49. Bc3 {[%clk 0:00:02.7]} 49... Kd7 {[%clk 0:01:52.9]} 50. Be5
{[%clk 0:00:02.9]} 50... Ke6 {[%clk 0:01:53.8]} 51. Bc7 {[%clk 0:00:03.2]} 51...
Kf5 {[%clk 0:01:54.7]} 52. Bb8 {[%clk 0:00:03.4]} 52... Rd4 {[%clk 0:01:55.1]}
53. Bc7 {[%clk 0:00:03.4]} 53... Rxf4 {[%clk 0:01:55.8]} 54. Bxf4 {[%clk
0:00:04.1]} 54... Kxf4 {[%clk 0:01:56.7]} 55. Kxd3 {[%clk 0:00:04.6]} 55... Kxg5
{[%clk 0:01:57.6]} 56. Ke3 {[%clk 0:00:05.1]} 56... Kxh6 {[%clk 0:01:58.5]} 0-1

[Event "*** Titled Tuesday Blitz"]
[Site "Chess.com"]
[Date "2020.10.27"]
[Round "3"]
[White "Gerodot71"]
[Black "m-garcett"]
[Result "1-0"]
[WhiteElo "2486"]
[BlackElo "2058"]
[TimeControl "180+1"]
[EndTime "10:27:14 PDT"]
[Termination "Gerodot71 won by resignation"]

1. d4 {[%clk 0:03:00.9]} 1... Nf6 {[%clk 0:02:54.5]} 2. c4 {[%clk 0:03:01]} 2...
g6 {[%clk 0:02:52.7]} 3. Nc3 {[%clk 0:03:00.6]} 3... Bg7 {[%clk 0:02:52.8]} 4.
e4 {[%clk 0:03:00.3]} 4... d6 {[%clk 0:02:53]} 5. Be2 {[%clk 0:03:00.8]} 5...
O-O {[%clk 0:02:51.9]} 6. Be3 {[%clk 0:03:01.4]} 6... Nc6 {[%clk 0:02:42.7]} 7.
d5 {[%clk 0:03:00.6]} 7... Ne5 {[%clk 0:02:39.6]} 8. f4 {[%clk 0:03:00.5]} 8...
Neg4 {[%clk 0:02:39.6]} 9. Bd2 {[%clk 0:03:01]} 9... e5 {[%clk 0:02:16]} 10. h3
{[%clk 0:02:50.4]} 10... Nh6 {[%clk 0:01:52.9]} 11. fxe5 {[%clk 0:02:47.5]}
11... Nd7 {[%clk 0:01:40.6]} 12. Nf3 {[%clk 0:02:41.9]} 12... Nxe5 {[%clk
0:01:37.3]} 13. O-O {[%clk 0:02:34.5]} 13... Nxf3+ {[%clk 0:01:21.5]} 14. Bxf3
{[%clk 0:02:35.4]} 14... f5 {[%clk 0:01:19.7]} 15. Qc2 {[%clk 0:02:11.1]} 15...
a6 {[%clk 0:01:10.3]} 16. Rae1 {[%clk 0:02:07.4]} 16... Qh4 {[%clk 0:01:08.1]}
17. Qc1 {[%clk 0:01:43]} 17... f4 {[%clk 0:00:47.6]} 18. Ne2 {[%clk 0:01:36.7]}
18... g5 {[%clk 0:00:45.2]} 19. Bc3 {[%clk 0:01:26.6]} 19... g4 {[%clk 0:00:30]}
20. hxg4 {[%clk 0:01:21.8]} 20... Bxg4 {[%clk 0:00:27.2]} 21. Bxg7 {[%clk
0:01:20.1]} 21... Kxg7 {[%clk 0:00:27.1]} 22. Qc3+ {[%clk 0:01:20.5]} 22... Kg8
{[%clk 0:00:17.2]} 23. Nd4 {[%clk 0:01:18]} 23... Bxf3 {[%clk 0:00:16.2]} 24.
Nxf3 {[%clk 0:01:18.9]} 24... Qg3 {[%clk 0:00:15.3]} 25. e5 {[%clk 0:01:17.1]}
25... Ng4 {[%clk 0:00:15]} 26. exd6 {[%clk 0:01:12.2]} 26... cxd6 {[%clk
0:00:14.9]} 27. Re7 {[%clk 0:01:09.6]} 27... Rf7 {[%clk 0:00:13.6]} 28. Rxf7
{[%clk 0:00:53]} 28... Kxf7 {[%clk 0:00:14.5]} 29. Ne5+ {[%clk 0:00:47.8]} 29...
dxe5 {[%clk 0:00:13]} 30. Qxg3 {[%clk 0:00:48.3]} 1-0